bitfinex/quotes_SOLUSD_20240821
["timestamp","ask_amount","ask_price","bid_price","bid_amount"]
[1724214597791,35.8095,142.98,142.94,6.26839767]
[1724214597986,35.8095,142.98,142.95,6.26839767]
[1724214598173,35.8095,142.98,142.93,10.31691957]
[1724214598377,35.8095,142.98,142.94,6.2682807]
[1724214598686,35.8095,142.98,142.95,6.2682807]
[1724214598895,35.8095,142.98,142.93,10.31691957]
[1724214599077,35.8095,142.98,142.94,6.26825602]
[1724214599278,35.8095,142.98,142.95,6.26825602]
[1724214599483,35.8095,142.98,142.94,6.26825602]
[1724214599674,35.8095,142.98,142.95,6.26825602]
[1724214599874,35.8095,142.98,142.94,6.26825602]
[1724214600090,35.8095,142.98,142.95,6.26825602]
[1724214600272,35.8095,142.98,142.94,6.26825602]
[1724214600474,35.8095,142.98,142.95,6.26825602]
[1724214600475,22.6395,142.98,142.95,6.26825602]
[1724214600679,22.6395,142.98,142.93,10.31691957]
[1724214600882,22.6395,142.98,142.94,51.26823511]
[1724214601082,22.6395,142.98,142.95,6.26823511]
[1724214604397,22.6395,142.98,142.94,45.0]
[1724214604698,22.6395,142.98,142.95,6.26853948]
[1724214605577,22.3329,143.02,142.97,13.17]
[1724214605795,22.3329,143.02,142.98,46.39865582]
[1724214606794,22.3329,143.02,142.98,45.0]
[1724214607974,22.3329,143.02,142.97,1.39865034]
[1724214607975,22.3329,143.02,142.97,45.0]
[1724214608174,22.3329,143.02,142.96,46.52414052]
[1724214608377,22.3329,143.02,142.97,6.26496539]
[1724214608697,22.3329,143.02,142.97,6.26501633]
[1724214609088,22.3329,143.02,142.96,45.0]
[1724214609293,22.3329,143.02,142.95,45.0]
[1724214609498,22.3329,143.02,142.96,6.2671654]
[1724214609798,22.3329,143.02,142.97,45.0]
[1724214610389,22.3329,143.02,142.96,45.0]
[1724214610605,22.3329,143.02,142.97,7.66520846]
[1724214610892,22.3329,143.02,142.98,45.0]
[1724214611806,22.3329,143.02,142.97,45.0]
[1724214612579,22.3329,143.02,142.96,46.39869232]
[1724214612881,22.3329,143.02,142.97,6.26610592]
[1724214613083,22.3329,143.02,142.98,45.0]
[1724214613697,22.3329,143.02,142.95,13.17]
[1724214613903,22.3329,143.02,142.96,51.2664996]
[1724214614100,22.3329,143.02,142.96,45.0]
[1724214614274,22.3329,143.02,142.96,46.39874959]
[1724214616179,22.3329,143.02,142.97,6.26599438]
[1724214617684,22.3329,143.02,142.97,6.26555795]
[1724214618094,22.3329,143.02,142.96,46.39874959]
[1724214620294,22.3329,143.02,142.97,6.26567362]
[1724214620494,22.3329,143.02,142.98,45.0]
[1724214621018,16.027,143.02,142.98,45.0]
[1724214623484,16.027,143.02,142.97,45.0]
[1724214623709,16.027,143.02,142.96,45.0]
[1724214623915,16.027,143.02,142.97,6.26696247]
[1724214624119,16.027,143.02,142.98,45.0]
[1724214624295,14.17,143.01,142.9,6.4518]
[1724214624507,19.3621,143.01,142.92,13.17]
[1724214624707,19.3621,143.01,142.93,6.26721861]
[1724214624928,19.3621,143.01,142.94,6.26721861]
[1724214625127,19.3621,143.01,142.95,6.26721861]
[1724214625425,19.3621,143.01,142.93,6.26721861]
[1724214625603,19.3621,143.01,142.94,6.39270861]
[1724214625806,19.3621,143.01,142.95,45.0]
[1724214626010,19.3621,143.01,142.94,45.12549]
[1724214626206,19.3621,143.01,142.95,51.26962816]
[1724214626423,19.3621,143.01,142.94,10.4404801]
[1724214626629,19.3621,143.01,142.95,51.26962816]
[1724214626826,19.3621,143.01,142.94,10.4404801]
[1724214627035,19.3621,143.01,142.95,51.26962924]
[1724214627212,19.3621,143.01,142.96,45.0]
[1724214627603,15.708,143.0,142.96,45.0]
[1724214628001,15.708,143.0,142.92,13.29549]
[1724214628239,15.708,143.0,142.93,51.39523745]
[1724214628426,15.708,143.0,142.94,6.26974745]
[1724214628622,15.708,143.0,142.95,45.0]
[1724214629306,13.17,142.99,142.95,45.0]
[1724214630705,13.17,142.99,142.94,45.0]
[1724214630915,13.17,142.99,142.95,6.27031661]
[1724214631113,13.17,142.99,142.94,6.27031661]
[1724214631407,13.17,142.99,142.95,45.0]
[1724214632937,13.17,142.99,142.94,45.0]
[1724214633239,13.17,142.99,142.95,6.26978975]
[1724214633540,13.17,142.99,142.94,6.26978975]
[1724214633833,13.17,142.99,142.95,45.0]
[1724214634204,13.17,142.99,142.94,45.0]
[1724214634414,13.17,142.99,142.95,6.27006566]
[1724214634628,13.17,142.99,142.94,6.27006566]
[1724214634913,13.17,142.99,142.95,45.0]
[1724214636845,15.708,143.0,142.95,45.0]
[1724214637135,15.708,143.0,142.96,1.39898095]
[1724214641322,15.708,143.0,142.96,7.66795229]
[1724214641535,15.708,143.0,142.97,45.0]
[1724214657761,15.708,143.0,142.98,45.0]
[1724214658068,15.708,143.0,142.96,45.0]
[1724214662655,15.708,143.0,142.96,46.39879576]
[1724214665374,15.708,143.0,142.97,45.0]
[1724214665695,15.708,143.0,142.96,1.39879519]
[1724214667278,15.708,143.0,142.96,7.67029729]
[1724214667452,15.708,143.0,142.97,51.2715021]
[1724214667777,15.708,143.0,142.98,45.0]
[1724214667945,15.708,143.0,142.96,1.39879519]
[1724214668145,15.708,143.0,142.97,6.2706742]
[1724214668345,15.708,143.0,142.98,45.0]
[1724214674881,15.708,143.0,142.95,10.32139514]
[1724214675060,15.708,143.0,142.96,6.27200046]
[1724214675261,15.708,143.0,142.94,10.32139514]
[1724214675475,15.708,143.0,142.95,6.2720104]
[1724214675684,15.708,143.0,142.96,6.2720104]
[1724214675982,15.708,143.0,142.93,10.32139514]
[1724214676157,15.708,143.0,142.94,37.99251971]
[1724214676358,15.708,143.0,142.95,6.27218241]
[1724214676588,15.708,143.0,142.96,6.27218241]
[1724214676758,15.708,143.0,142.94,21.39894216]
[1724214677078,15.708,143.0,142.95,51.27214691]
[1724214677282,15.708,143.0,142.96,6.27214691]
[1724214677455,15.708,143.0,142.95,45.0]
[1724214677651,15.708,143.0,142.96,6.27214194]
[1724214677870,15.708,143.0,142.95,45.0]
[1724214678070,15.708,143.0,142.96,6.27214194]
[1724214678272,15.708,143.0,142.95,45.0]
[1724214678486,15.708,143.0,142.96,6.27214086]
[1724214678663,15.708,143.0,142.95,45.0]
[1724214678852,15.708,143.0,142.96,6.27214086]
[1724214679055,15.708,143.0,142.95,45.0]
[1724214679285,15.708,143.0,142.96,6.27200766]
[1724214679463,15.708,143.0,142.95,45.0]
[1724214679665,15.708,143.0,142.96,6.27200766]
[1724214679891,15.708,143.0,142.95,45.0]
[1724214680184,15.708,143.0,142.96,6.27203683]
[1724214680389,15.708,143.0,142.95,45.0]
[1724214680565,15.708,143.0,142.96,6.27203683]
[1724214680766,15.708,143.0,142.95,45.0]
[1724214681066,15.708,143.0,142.96,6.2727414]
[1724214681275,15.708,143.0,142.95,45.0]
[1724214681472,15.708,143.0,142.96,6.27275817]
[1724214681672,15.708,143.0,142.95,45.0]
[1724214681873,15.708,143.0,142.96,6.27267797]
[1724214682177,15.708,143.0,142.95,45.0]
[1724214682379,15.708,143.0,142.96,7.67160979]
[1724214682561,15.708,143.0,142.97,45.0]
[1724214682766,15.708,143.0,142.96,1.39893572]
[1724214686590,28.878,143.0,142.95,45.0]
[1724214686889,28.878,143.0,142.96,6.27222922]
[1724214687067,28.878,143.0,142.97,45.0]
[1724214687267,28.878,143.0,142.95,45.0]
[1724214687500,28.878,143.0,142.96,6.27195918]
[1724214687695,28.878,143.0,142.97,45.0]
[1724214687901,13.17,142.98,142.89,13.17]
[1724214688204,13.17,142.98,142.9,16.59622288]
[1724214688392,13.17,142.98,142.91,16.59622288]
[1724214688599,13.17,142.98,142.92,16.59622288]
[1724214688897,13.17,142.98,142.93,6.27251808]
[1724214689082,13.17,142.98,142.91,6.277313]
[1724214689278,22.3047,143.0,142.92,6.277313]
[1724214689488,13.17,142.99,142.93,7.67525358]
[1724214689785,13.17,142.99,142.94,45.0]
[1724214690401,22.3047,143.0,142.94,45.0]
[1724214690723,35.4747,143.0,142.94,45.0]
[1724214691009,35.4747,143.0,142.93,46.39904412]
[1724214691173,35.4747,143.0,142.94,45.0]
[1724214691480,35.4747,143.0,142.92,46.39899255]
[1724214691679,35.4747,143.0,142.93,6.40011305]
[1724214691992,35.4747,143.0,142.94,51.27462305]
[1724214692200,35.4747,143.0,142.95,45.0]
[1724214692697,35.4747,143.0,142.94,45.0]
[1724214693478,35.4747,143.0,142.93,45.12549]
[1724214693682,35.4747,143.0,142.94,45.0]
[1724214693904,35.4747,143.0,142.93,0.12549]
[1724214694208,35.4747,143.0,142.93,6.40173815]
[1724214694396,35.4747,143.0,142.94,45.0]
[1724214695779,35.4747,143.0,142.93,45.12549]
[1724214696184,35.4747,143.0,142.94,45.0]
[1724214696486,35.4747,143.0,142.93,0.12549]
[1724214696684,35.4747,143.0,142.93,6.40289028]
[1724214696886,35.4747,143.0,142.94,45.0]
[1724214698098,13.17,142.98,142.94,45.0]
[1724214702619,13.17,142.99,142.94,45.0]
[1724214703408,13.17,142.99,142.88,25.74993742]
[1724214703409,16.3638,142.93,142.79,18.9392]
[1724214703620,13.17,142.87,142.8,29.78751992]
[1724214703780,16.3638,142.87,142.79,32.1092]
[1724214703978,29.5338,142.87,142.8,16.64259602]
[1724214704296,29.5338,142.87,142.81,6.29005777]
[1724214704478,29.5338,142.87,142.79,38.39925777]
[1724214704681,29.5338,142.87,142.79,32.1092]
[1724214706410,29.5338,142.87,142.8,20.0]
[1724214706709,29.5338,142.87,142.81,45.25098]
[1724214707009,29.5338,142.87,142.82,20.0]
[1724214707208,29.5338,142.87,142.83,45.12549]
[1724214707711,16.3638,142.87,142.83,45.12549]
[1724214708087,16.3638,142.87,142.83,45.0]
[1724214713324,16.3638,142.87,142.83,46.39998999]
[1724214713812,16.3638,142.87,142.83,45.0]
[1724214715885,16.3638,142.87,142.83,58.17]
[1724214716090,16.3638,142.87,142.84,1.3999157]
[1724214721825,16.3638,142.87,142.83,58.17]
[1724214722022,16.3638,142.87,142.84,0.12549]
[1724214722926,16.3638,142.87,142.84,1.52533926]
[1724214723732,16.3638,142.87,142.84,0.12549]
[1724214724122,16.3638,142.87,142.84,1.52534254]
[1724214725216,6.1936,142.89,142.84,1.52534254]
[1724214725217,22.6787,142.93,142.85,13.17]
[1724214725529,22.6787,142.93,142.87,13.17]
[1724214725843,22.6787,142.93,142.88,46.52495135]
[1724214727011,22.6787,142.93,142.88,45.12549]
[1724214730120,22.6787,142.93,142.89,1.39946252]
[1724214734340,22.6787,142.93,142.88,45.12549]
[1724214735638,22.6787,142.93,142.89,1.39946374]
[1724214735944,22.6787,142.93,142.88,45.12549]
[1724214736120,22.6787,142.93,142.89,1.39946001]
[1724214737537,22.6787,142.93,142.88,45.12549]
[1724214737928,22.6787,142.93,142.89,1.39946172]
[1724214738527,22.6787,142.93,142.88,45.12549]
[1724214739745,22.6787,142.93,142.89,45.0]
[1724214739946,22.6787,142.93,142.88,0.12549]
[1724214740133,22.6787,142.93,142.88,20.12549]
[1724214740339,22.6787,142.93,142.89,45.0]
[1724214741345,22.6787,142.93,142.9,1.3994528]
[1724214743841,22.6787,142.93,142.89,45.0]
[1724214744847,22.6787,142.93,142.9,1.39869745]
[1724214746734,16.3802,142.93,142.9,1.39869745]
[1724214749059,16.3802,142.93,142.89,45.0]
[1724214753027,16.3802,142.93,142.9,1.39935208]
[1724214754941,16.3802,142.93,142.9,14.56935208]
[1724214755259,16.3802,142.93,142.91,45.0]
[1724214756550,16.3802,142.93,142.91,46.39924074]
[1724214759139,16.3802,142.93,142.91,45.0]
[1724214762353,16.3802,142.93,142.91,46.39924394]
[1724214764065,21.5383,142.96,142.91,46.39924394]
[1724214764950,21.5383,142.96,142.92,0.12549]
[1724214766366,21.5383,142.96,142.92,1.52456175]
[1724214767753,15.5292,142.96,142.92,1.52456175]
[1724214769455,15.5292,142.96,142.92,0.12549]
[1724214769665,28.6992,142.96,142.91,45.0]
[1724214771647,28.6992,142.96,142.92,0.40010803]
[1724214771870,28.6992,142.96,142.91,45.0]
[1724214773450,15.5292,142.96,142.91,45.0]
[1724214776467,15.5292,142.96,142.92,0.12549]
[1724214779377,15.5292,142.96,142.92,0.25098]
[1724214782558,15.5292,142.96,142.92,1.52449451]
[1724214782752,15.5292,142.96,142.93,1.39890662]
[1724214783062,34.4259,143.0,142.92,13.29549]
[1724214783264,34.4259,143.0,142.93,45.12549]
[1724214784963,1.0,142.99,142.93,45.12549]
[1724214790263,34.4259,143.0,142.93,45.12549]
[1724214793366,1.0,142.99,142.93,45.0]
[1724214794663,34.4259,143.0,142.93,45.0]
[1724214798785,1.0,142.99,142.93,45.0]
[1724214799378,13.17,142.98,142.93,45.0]
[1724214799592,13.17,142.96,142.93,45.0]
[1724214799795,1.0,142.95,142.93,45.0]
[1724214801687,1.0,142.95,142.88,6.6153]
[1724214801864,13.17,142.96,142.89,20.0]
[1724214802067,13.17,142.96,142.88,12.87820882]
[1724214802879,21.2559,143.0,142.88,12.87820882]
[1724214803083,13.17,142.97,142.89,46.65031666]
[1724214803282,13.17,142.97,142.89,45.25098]
[1724214804390,13.17,142.97,142.9,1.39923202]
[1724214806199,13.17,142.97,142.89,45.25098]
[1724214807197,13.17,142.97,142.9,1.39922963]
[1724214807777,13.17,142.97,142.89,45.25098]
[1724214810875,13.17,142.97,142.89,58.42098]
[1724214812599,13.17,142.97,142.9,1.39915954]
[1724214814390,13.17,142.97,142.89,58.42098]
[1724214816688,13.17,142.97,142.89,45.25098]
[1724214816896,13.17,142.97,142.89,58.42098]
[1724214817909,15.2209,142.96,142.89,45.25098]
[1724214819988,1.0,142.95,142.89,45.25098]
[1724214820189,14.17,142.95,142.89,45.12549]
[1724214820386,14.17,142.95,142.88,13.17]
[1724214820690,14.17,142.95,142.86,19.43230547]
[1724214820889,14.17,142.95,142.86,13.17]
[1724214821095,14.17,142.95,142.86,19.43230547]
[1724214821293,14.17,142.95,142.86,13.17]
[1724214821698,14.17,142.95,142.87,45.0]
[1724214821902,13.17,142.95,142.88,0.12549]
[1724214828617,21.5076,142.96,142.88,0.12549]
[1724214828821,34.6776,142.96,142.88,14.82040922]
[1724214829025,21.5076,142.96,142.89,45.0]
[1724214829231,21.5076,142.96,142.9,0.12549]
[1724214829399,21.5076,142.96,142.9,1.52474976]
[1724214830324,21.5076,142.96,142.9,14.69474976]
[1724214830533,15.2209,142.96,142.92,13.17]
[1724214830702,15.2209,142.96,142.93,45.12549]
[1724214832220,15.2209,142.96,142.94,1.39894027]
[1724214833317,15.2209,142.96,142.93,45.12549]
[1724214834743,15.2209,142.96,142.93,45.0]
[1724214834916,15.2209,142.96,142.9,13.17]
[1724214836128,15.2209,142.96,142.91,0.25098]
[1724214836328,15.2209,142.96,142.91,45.25098]
[1724214840022,15.2209,142.96,142.92,1.39909029]
[1724214840729,15.2209,142.96,142.91,45.25098]
[1724214841322,16.2209,142.96,142.86,10.29613826]
[1724214841659,1.0,142.95,142.87,13.17]
[1724214841818,28.3909,142.96,142.87,13.17]
[1724214842717,28.3909,142.96,142.88,45.0]
[1724214842912,28.3909,142.96,142.89,0.12549]
[1724214846136,6.638,142.95,142.89,0.12549]
[1724214847737,6.638,142.95,142.89,1.5248505]
[1724214848449,6.638,142.95,142.89,0.12549]
[1724214848738,6.638,142.95,142.89,1.5248506]
[1724214848948,6.638,142.95,142.89,14.6948506]
[1724214849130,6.638,142.95,142.9,45.12549]
[1724214849331,6.638,142.95,142.91,1.39919099]
[1724214851522,6.638,142.95,142.92,1.39917998]
[1724214851721,15.2209,142.96,142.92,46.39917998]
[1724214852019,15.2209,142.96,142.93,1.39904048]
[1724214853451,15.2209,142.96,142.92,45.0]
[1724214854124,15.2209,142.96,142.93,1.39906594]
[1724214868453,15.2209,142.96,142.92,45.12549]
[1724214868760,15.2209,142.96,142.93,0.25098]
[1724214869258,15.2209,142.96,142.93,1.64992123]
[1724214875903,15.2209,142.96,142.93,0.25098]
[1724214876161,15.2209,142.96,142.93,0.12549]
[1724214876356,28.3909,142.96,142.88,13.17]
[1724214876559,28.3909,142.96,142.89,20.0]
[1724214877737,28.3909,142.96,142.9,45.12549]
[1724214877941,28.3909,142.96,142.91,0.12549]
[1724214878138,28.3909,142.96,142.91,1.52465043]
[1724214882557,15.2209,142.96,142.91,1.52465043]
[1724214883080,15.2209,142.96,142.91,1.52465091]
[1724214891580,15.2209,142.96,142.92,0.12549]
[1724214895586,15.2209,142.96,142.92,46.52448504]
[1724214895967,15.2209,142.96,142.92,1.52448504]
[1724214902904,15.2209,142.96,142.93,0.12549]
[1724214906195,15.2209,142.96,142.92,0.25098]
[1724214911185,15.2209,142.96,142.92,34.81998423]
[1724214911385,15.2209,142.96,142.93,45.0]
[1724214911688,15.2209,142.96,142.94,1.39895942]
[1724214918495,15.2209,142.96,142.93,45.0]
[1724214918710,15.2209,142.96,142.94,0.12549]
[1724214919221,15.2209,142.96,142.94,1.21555976]
[1724214926126,15.2209,142.96,142.94,0.12549]
[1724214926427,15.2209,142.96,142.93,45.0]
[1724214932207,15.2209,142.96,142.94,1.39894875]
[1724214941733,15.2209,142.96,142.95,0.12549]
[1724214943218,15.2209,142.96,142.95,45.12549]
[1724214955152,16.0311,143.0,142.95,45.25098]
[1724214956749,16.0311,143.0,142.95,45.12549]
[1724214957656,1.0,142.99,142.92,20.0]
[1724214957826,1.0,142.99,142.93,0.12549]
[1724214958551,13.17,142.96,142.9,6.25889987]
[1724214958851,1.0,142.95,142.87,13.17]
[1724214959019,13.17,142.96,142.88,6.25889987]
[1724214959834,13.17,142.96,142.89,14.56930075]
[1724214960157,15.9347,142.97,142.9,1.39919419]
[1724214960354,15.9347,142.97,142.91,0.12549]
[1724214960651,15.9347,142.97,142.91,0.25098]
[1724214961846,15.9347,142.97,142.91,14.82006891]
[1724214962052,15.9347,142.97,142.92,45.0]
[1724214962221,15.9347,142.97,142.93,1.39902844]
[1724214963360,15.9347,142.97,142.93,14.56902844]
[1724214963540,15.9347,142.97,142.94,45.12549]
[1724214963853,15.9347,142.97,142.95,14.5688327]
[1724214964038,15.9347,142.97,142.96,46.39883787]
[1724214964554,15.9347,142.97,142.96,45.0]
[1724214966947,16.1745,143.01,142.96,45.0]
[1724214967153,16.1745,143.01,142.96,46.39873712]
[1724214968154,16.1745,143.01,142.96,45.0]
[1724214968728,16.1745,143.01,142.97,1.39873771]
[1724214969539,16.1745,143.01,142.97,14.56873771]
[1724214969741,16.1745,143.01,142.98,45.12549]
[1724214970067,16.1745,143.01,142.99,1.39851375]
[1724214973258,16.1745,143.01,142.98,45.12549]
[1724214973958,16.1745,143.01,142.98,45.0]
[1724214974939,16.1745,143.01,142.97,45.0]
[1724214975140,16.1745,143.01,142.98,0.12549]
[1724214975970,16.1745,143.01,142.97,45.0]
[1724214976160,16.1745,143.01,142.96,45.12549]
[1724214976356,16.1745,143.01,142.97,0.12549]
[1724214976863,16.1745,143.01,142.96,45.0]
[1724214977162,1.0,143.0,142.93,13.17]
[1724214977372,1.0,143.0,142.91,6.25363575]
[1724214977570,1.0,143.0,142.89,28.94294386]
[1724214977571,1.0,143.0,142.92,13.17]
[1724214978070,1.0,143.0,142.9,6.25363575]
[1724214978369,1.0,143.0,142.91,13.17]
[1724214979462,36.0075,143.01,142.92,20.0]
[1724214979643,36.0075,143.01,142.93,45.25098]
[1724214980349,36.0075,143.01,142.93,58.42098]
[1724214981550,36.0075,143.01,142.94,1.39887981]
[1724214982267,36.0075,143.01,142.93,58.42098]
[1724214982963,1.0,143.0,142.93,58.42098]
[1724214983160,36.0075,143.01,142.93,58.42098]
[1724214984946,1.0,143.0,142.93,45.25098]
[1724214985142,36.0075,143.01,142.93,45.12549]
[1724214985363,36.0075,143.01,142.94,1.39896708]
[1724214986076,36.0075,143.01,142.93,58.29549]
[1724214990874,1.0,143.0,142.93,45.12549]
[1724214991063,13.17,142.99,142.93,45.0]
[1724214991264,16.8224,142.98,142.94,45.0]
[1724214991469,15.8224,142.98,142.92,45.12549]
[1724214992782,16.8224,142.98,142.92,45.12549]
[1724214992963,15.8224,142.98,142.92,45.12549]
[1724214994055,15.8224,142.98,142.92,45.0]
[1724214994260,16.8224,142.98,142.92,45.0]
[1724214995883,15.8224,142.98,142.92,45.0]
[1724214997078,7.1419,142.97,142.91,45.0]
[1724214997581,6.1419,142.97,142.91,45.0]
[1724214998571,7.1419,142.97,142.91,45.0]
[1724215000586,17.1881,142.96,142.86,10.30945937]
[1724215000788,16.1881,142.96,142.87,33.29549]
[1724215000993,1.0,142.95,142.87,33.29549]
[1724215001991,1.0,142.95,142.88,0.12549]
[1724215002169,16.1881,142.96,142.88,0.12549]
[1724215002886,16.1881,142.96,142.88,45.12549]
[1724215003063,16.1881,142.96,142.89,20.0]
[1724215003270,16.1881,142.96,142.9,45.0]
[1724215024208,15.7224,142.92,142.83,10.31702359]
[1724215024400,15.7224,142.92,142.83,13.17]
[1724215024707,14.17,142.91,142.83,13.17]
[1724215025676,14.17,142.91,142.84,45.0]
[1724215026185,13.17,142.91,142.84,45.0]
[1724215027091,1.0,142.9,142.84,45.0]
[1724215027286,13.17,142.91,142.84,45.0]
[1724215030790,13.17,142.91,142.84,1.39987301]
[1724215030791,22.8986,142.9,142.84,1.39987301]
[1724215031614,22.8986,142.9,142.84,14.56987301]
[1724215032122,22.8986,142.9,142.85,45.0]
[1724215038334,22.8986,142.9,142.85,46.39986654]
[1724215040225,22.8986,142.9,142.86,1.39983374]
[1724215041125,22.8986,142.9,142.86,14.56983374]
[1724215041316,22.8986,142.9,142.87,45.0]
[1724215041516,16.3443,142.9,142.88,1.39959746]
[1724215043630,16.3443,142.9,142.87,45.0]
[1724215057733,1.0,142.89,142.83,13.17]
[1724215057931,1.0,142.89,142.84,51.53450486]
[1724215058135,1.0,142.89,142.84,45.25098]
[1724215058319,16.3443,142.9,142.84,45.25098]
[1724215059936,1.0,142.89,142.84,45.25098]
[1724215061241,1.0,142.89,142.84,45.12549]
[1724215062125,1.0,142.89,142.84,45.0]
[1724215064314,22.8957,142.9,142.83,45.0]
[1724215065145,22.8957,142.9,142.84,1.39997602]
[1724215065526,22.8957,142.9,142.84,7.68458014]
[1724215065841,22.8957,142.9,142.85,45.0]
[1724215068627,22.8957,142.9,142.84,45.0]
[1724215068827,22.8957,142.9,142.83,45.0]
[1724215069024,22.8957,142.9,142.84,6.28499706]
[1724215069331,22.8957,142.9,142.85,45.0]
[1724215070116,22.8957,142.9,142.84,45.0]
[1724215070828,22.8957,142.9,142.83,45.0]
[1724215071017,22.8957,142.9,142.84,6.2857617]
[1724215071222,22.8957,142.9,142.85,45.0]
[1724215071631,22.8957,142.9,142.84,45.0]
[1724215071838,22.8957,142.9,142.83,45.0]
[1724215072034,22.8957,142.9,142.84,6.28575534]
[1724215072249,1.0,142.89,142.85,45.0]
[1724215072920,1.0,142.89,142.84,45.0]
[1724215073123,1.0,142.89,142.83,45.0]
[1724215073324,22.8957,142.9,142.83,45.12549]
[1724215073522,22.8957,142.9,142.84,6.28670242]
[1724215073748,22.8957,142.9,142.85,45.0]
[1724215073938,1.0,142.89,142.83,0.12549]
[1724215074253,22.8957,142.9,142.84,6.28622164]
[1724215074548,22.8957,142.9,142.85,45.0]
[1724215074853,22.8957,142.9,142.84,13.17]
[1724215075047,22.8957,142.9,142.85,45.0]
[1724215075224,22.8957,142.9,142.85,46.3999676]
[1724215075427,16.3443,142.9,142.86,14.56982169]
[1724215075634,16.3443,142.9,142.88,13.17]
[1724215075948,16.3443,142.9,142.88,14.56959399]
[1724215076528,16.3443,142.9,142.89,45.0]
[1724215090664,22.6663,142.93,142.89,45.0]
[1724215090861,16.142,142.93,142.9,1.39952457]
[1724215093144,19.4618,142.97,142.9,1.39952457]
[1724215093470,34.7225,142.97,142.9,1.39952457]
[1724215094565,34.7225,142.97,142.89,45.0]
[1724215094743,34.7225,142.97,142.9,0.12549]
[1724215095862,1.0,142.96,142.89,45.0]
[1724215096160,1.0,142.95,142.89,45.0]
[1724215096954,1.0,142.96,142.89,45.0]
[1724215097255,34.7225,142.97,142.89,45.0]
[1724215100369,34.7225,142.97,142.9,1.39938142]
[1724215103565,34.7225,142.97,142.89,45.0]
[1724215103757,34.7225,142.97,142.9,0.12549]
[1724215105577,34.7225,142.97,142.89,45.0]
[1724215105578,13.17,142.95,142.89,45.0]
[1724215105746,1.0,142.94,142.89,45.0]
[1724215106643,13.17,142.95,142.89,45.0]
[1724215108372,1.0,142.94,142.89,45.0]
[1724215108607,13.17,142.95,142.89,45.0]
[1724215110079,1.0,142.94,142.89,45.0]
[1724215111586,13.17,142.93,142.84,16.92961613]
[1724215111881,13.17,142.93,142.86,1.39971141]
[1724215112056,13.17,142.93,142.85,26.27762744]
[1724215112267,13.17,142.93,142.85,20.0]
[1724215112574,13.17,142.95,142.86,13.17]
[1724215112790,13.17,142.95,142.87,45.12549]
[1724215112960,13.17,142.95,142.87,46.52509268]
[1724215113656,13.17,142.95,142.87,45.12549]
[1724215116579,21.5525,142.97,142.88,14.56948058]
[1724215116746,34.7225,142.97,142.89,45.0]
[1724215116951,34.7225,142.97,142.9,1.39942286]
[1724215117173,34.7225,142.97,142.89,46.39942286]
[1724215120381,28.4307,142.97,142.9,1.39946213]
[1724215129664,15.946,143.0,142.9,20.85196382]
[1724215129867,15.946,143.0,142.92,19.7798]
[1724215130068,15.946,143.0,142.93,1.52447207]
[1724215130268,15.946,143.0,142.93,46.52447207]
[1724215131288,15.946,143.0,142.93,45.12549]
[1724215131974,1.0,142.99,142.93,45.12549]